Workbook

Sheet Main
L1: Population - Normal Distribution, Average ball weight 250.07 and SD 4.37 | AC1: Understanding Calculation of Probability for Normal Distribution | AO1: Download from http://aksharait.com
B2: Here population is balls having weights 238 grms to 262 grms with 250 grms as average μ and 4.37 grms as std. deviation σ. Weights of balls are normally distributed. Note the formula. Event takes one random ball and if its weight is within specified interval count that event and updates probability. Repeat the exproment by changing value of Interval (Cell AU15)
S3: INDEX | V3: Max | Z3: 262.43
V4: Avg | Z4: 250.07
V5: Min | Z5: 238.6 | AO5: Sample
AO12: Normal Distribution Theory
AO13: Avg (μ) | AU13: 250.07
B14: Repeat Expriment | AO14: SD (σ) | AU14: 4.37
AO15: Interval | AU15: 4
AO16: Avg-Interval | AU16: =AU13-AU15 -> 246.07
B17: Break Expriment | AO17: Avg+Interval | AU17: =AU13+AU15 -> 254.07
AO18: CumDst Avg-Int | AU18: =NORMDIST(AU16,AU13,AU14,TRUE) -> 0.1800087328
AO19: CumDst Avg+Int | AU19: =NORMDIST(AU17,AU13,AU14,TRUE) -> 0.8199912672
AO20: Diff | AU20: =AU19-AU18 -> 0.6399825344
AO21: Probability that ball wight will be between 248.98 and 251.16 is | AU21: =AU20 -> 0.6399825344
B25: This Event Number (not trials) | H25: 36 | K25: Weight of this ball | Q25: 256.7782675 | T25: Events where weight is in desired interval | Z25: 21 | AC25: Observed Probability of having weight between desired interval | AI25: =Z25/H25 -> 0.5833333333

Sheet PopulationData
A1: Normal Distributed Weight Values with μ = 250 σ2 = 20 | B1: μ - xi | C1: 8*(μ - xi) To color the balls in scale of " 100
A2: 249.8382697 | B2: =250-A2 -> 0.1617302951 | C2: =B2*8 -> 1.293842361
A3: 249.3720444 | B3: =250-A3 -> 0.6279556005 | C3: =B3*8 -> 5.023644804
A4: 253.1009323 | B4: -3.100932346 | C4: -24.80745877
A5: 248.9347942 | B5: 1.065205797 | C5: 8.521646374
A6: 252.6821876 | B6: -2.682187625 | C6: -21.457501
A7: 253.1691762 | B7: -3.169176242 | C7: -25.35340994
A8: 245.7988482 | B8: 4.201151785 | C8: 33.60921428
A9: 249.9709845 | B9: 0.02901553143 | C9: 0.2321242514
A10: 249.7625504 | B10: 0.237449645 | C10: 1.89959716
A11: 249.2630162 | B11: 0.7369837857 | C11: 5.895870286
A12: 250.0452435 | B12: -0.04524350673 | C12: -0.3619480539
A13: 250.7160147 | B13: -0.7160146786 | C13: -5.728117429
A14: 243.4465969 | B14: 6.553403099 | C14: 52.42722479
A15: 249.822955 | B15: 0.1770449602 | C15: 1.416359682
A16: 255.2881459 | B16: -5.288145881 | C16: -42.30516705
A17: 246.6700656 | B17: 3.329934356 | C17: 26.63947485
A18: 252.8947984 | B18: -2.894798401 | C18: -23.15838721
A19: 248.1966833 | B19: 1.803316682 | C19: 14.42653346
A20: 245.3947182 | B20: 4.605281815 | C20: 36.84225452
A21: 253.0915412 | B21: -3.0915412 | C21: -24.7323296
A22: 247.70172 | B22: 2.298280011 | C22: 18.38624009
A23: 247.2036592 | B23: 2.796340802 | C23: 22.37072642
A24: 249.4547237 | B24: 0.5452762971 | C24: 4.362210377
A25: 252.2484614 | B25: -2.248461402 | C25: -17.98769122
A26: 253.3434608 | B26: -3.343460766 | C26: -26.74768613
A27: 246.2216324 | B27: 3.778367602 | C27: 30.22694081
A28: 251.9621894 | B28: -1.962189429 | C28: -15.69751543
A29: 247.4619931 | B29: 2.538006856 | C29: 20.30405484
A30: 253.7569021 | B30: -3.756902111 | C30: -30.05521689
A31: 244.3372 | B31: 5.662799974 | C31: 45.30239979
A32: 247.5763508 | B32: 2.423649159 | C32: 19.38919327
A33: 251.3324457 | B33: -1.332445699 | C33: -10.65956559
A34: 246.1933712 | B34: 3.806628806 | C34: 30.45303044
A35: 253.7631764 | B35: -3.763176377 | C35: -30.10541102
A36: 247.2012133 | B36: 2.798786704 | C36: 22.39029363
A37: 255.9887147 | B37: -5.988714707 | C37: -47.90971766
A38: 249.9857897 | B38: 0.01421026837 | C38: 0.113682147
A39: 248.8019732 | B39: 1.198026848 | C39: 9.584214787
A40: 249.4437133 | B40: 0.5562866531 | C40: 4.450293225
A41: 253.8051264 | B41: -3.805126418 | C41: -30.44101135
A42: 255.1447984 | B42: -5.144798429 | C42: -41.15838743
A43: 244.198529 | B43: 5.801470967 | C43: 46.41176774
A44: 250.2546415 | B44: -0.2546414945 | C44: -2.037131956
A45: 245.1693435 | B45: 4.830656517 | C45: 38.64525213
A46: 250.6854763 | B46: -0.6854762597 | C46: -5.483810078
A47: 250.0563065 | B47: -0.05630652004 | C47: -0.4504521603
A48: 246.2238372 | B48: 3.776162804 | C48: 30.20930244
A49: 249.6528127 | B49: 0.3471873145 | C49: 2.777498516
A50: 249.0747235 | B50: 0.925276457 | C50: 7.402211656
A51: 248.1307335 | B51: 1.869266495 | C51: 14.95413196
A52: 240.8536753 | B52: 9.146324741 | C52: 73.17059793
A53: 245.5104218 | B53: 4.489578172 | C53: 35.91662538
A54: 260.1115173 | B54: -10.11151732 | C54: -80.89213855
A55: 247.1848552 | B55: 2.815144818 | C55: 22.52115855
A56: 247.6322211 | B56: 2.367778875 | C56: 18.942231
A57: 251.8152896 | B57: -1.81528958 | C57: -14.52231664
A58: 250.6329023 | B58: -0.6329022969 | C58: -5.063218375
A59: 246.8145638 | B59: 3.185436154 | C59: 25.48348923
A60: 250.1297532 | B60: -0.1297531735 | C60: -1.038025388
A61: 251.9759834 | B61: -1.975983384 | C61: -15.80786707
A62: 248.4962056 | B62: 1.5037944 | C62: 12.0303552
A63: 252.164912 | B63: -2.16491201 | C63: -17.31929608
A64: 257.2241921 | B64: -7.224192076 | C64: -57.79353661
A65: 255.3733243 | B65: -5.373324338 | C65: -42.9865947
A66: 246.911188 | B66: 3.088812005 | C66: 24.71049604
A67: 250.3798305 | B67: =250-A67 -> -0.3798305423 | C67: =B67*8 -> -3.038644339
A68: 253.3777016 | B68: -3.377701614 | C68: -27.02161291
A69: 249.8047108 | B69: 0.1952891839 | C69: 1.562313471
A70: 260.2060881 | B70: -10.20608806 | C70: -81.64870452
A71: 248.3599725 | B71: 1.640027538 | C71: 13.1202203
A72: 245.8326953 | B72: 4.167304658 | C72: 33.33843726
A73: 252.4726355 | B73: -2.47263548 | C73: -19.78108384
A74: 254.5710754 | B74: -4.571075445 | C74: -36.56860356
A75: 247.5994367 | B75: 2.400563348 | C75: 19.20450679
A76: 250.7072003 | B76: -0.7072002716 | C76: -5.657602173
A77: 243.548277 | B77: 6.451722986 | C77: 51.61378389
A78: 246.5440283 | B78: 3.455971655 | C78: 27.64777324
A79: 248.2831195 | B79: 1.716880508 | C79: 13.73504407
A80: 239.7557224 | B80: 10.24427755 | C80: 81.95422042
A81: 256.8380249 | B81: -6.838024881 | C81: -54.70419905
A82: 258.7970277 | B82: -8.79702774 | C82: -70.37622192
A83: 250.9281263 | B83: -0.9281262771 | C83: -7.425010216
A84: 248.2349792 | B84: 1.765020804 | C84: 14.12016643
A85: 243.5847003 | B85: 6.415299666 | C85: 51.32239732
A86: 256.3480179 | B86: -6.348017894 | C86: -50.78414315
A87: 252.0440048 | B87: -2.044004805 | C87: -16.35203844
A88: 251.2774757 | B88: -1.277475706 | C88: -10.21980565
A89: 250.6640571 | B89: -0.664057124 | C89: -5.312456992
A90: 258.9008686 | B90: -8.900868638 | C90: -71.2069491
A91: 252.6810459 | B91: -2.681045891 | C91: -21.44836713
A92: 248.2766605 | B92: 1.723339485 | C92: 13.78671588
A93: 246.7394719 | B93: 3.260528136 | C93: 26.08422509
A94: 246.4411691 | B94: 3.558830923 | C94: 28.47064738
A95: 247.4329515 | B95: 2.56704853 | C95: 20.53638824
A96: 243.7961077 | B96: 6.203892262 | C96: 49.6311381
A97: 250.6851387 | B97: -0.6851386644 | C97: -5.481109315
A98: 249.098876 | B98: 0.9011239893 | C98: 7.208991914
A99: 253.1972725 | B99: -3.197272459 | C99: -25.57817967
A100: 248.1071507 | B100: 1.892849261 | C100: 15.14279409
A101: 251.4451469 | B101: -1.445146877 | C101: -11.56117502
A102: 255.9978507 | B102: -5.99785074 | C102: -47.98280592
A103: 249.8631935 | B103: 0.1368065001 | C103: 1.094452001
A104: 247.7993445 | B104: 2.200655483 | C104: 17.60524387
A105: 255.8251109 | B105: -5.825110949 | C105: -46.60088759
A106: 241.9299905 | B106: 8.070009548 | C106: 64.56007638
A107: 245.51888 | B107: 4.481120016 | C107: 35.84896013
A108: 247.4508247 | B108: 2.54917534 | C108: 20.39340272
A109: 250.3664055 | B109: -0.3664055247 | C109: -2.931244198
A110: 253.2153678 | B110: -3.215367842 | C110: -25.72294273
A111: 245.5252462 | B111: 4.474753849 | C111: 35.7980308
A112: 242.1556636 | B112: 7.844336351 | C112: 62.75469081
A113: 256.593586 | B113: -6.593585966 | C113: -52.74868772
A114: 248.3394158 | B114: 1.660584177 | C114: 13.28467342
A115: 253.1070703 | B115: -3.107070287 | C115: -24.8565623
A116: 249.5182255 | B116: 0.481774468 | C116: 3.854195744
A117: 257.9992387 | B117: -7.999238746 | C117: -63.99390996
A118: 255.7199885 | B118: -5.719988497 | C118: -45.75990797
A119: 245.3517067 | B119: 4.648293295 | C119: 37.18634636
A120: 244.5654012 | B120: 5.43459875 | C120: 43.47679
A121: 252.436833 | B121: -2.436833027 | C121: -19.49466422
A122: 243.7559639 | B122: 6.244036051 | C122: 49.95228841
A123: 258.3174627 | B123: -8.317462702 | C123: -66.53970161
A124: 244.4401098 | B124: 5.559890192 | C124: 44.47912153
A125: 252.8726675 | B125: -2.872667459 | C125: -22.98133967
A126: 254.9148942 | B126: -4.914894249 | C126: -39.319154
A127: 252.9269813 | B127: -2.92698129 | C127: -23.41585032
A128: 251.9008299 | B128: -1.900829893 | C128: -15.20663915
A129: 249.256586 | B129: 0.7434139659 | C129: 5.947311727
A130: 251.4851576 | B130: -1.485157606 | C130: -11.88126084
A131: 243.4810825 | B131: =250-A131 -> 6.518917454 | C131: =B131*8 -> 52.15133963
A132: 241.8707347 | B132: 8.129265334 | C132: 65.03412267
A133: 251.481165 | B133: -1.481165041 | C133: -11.84932033
A134: 252.6122138 | B134: -2.6122138 | C134: -20.8977104
A135: 240.6966884 | B135: 9.303311621 | C135: 74.42649297
A136: 245.7647969 | B136: 4.235203081 | C136: 33.88162465
A137: 254.1846031 | B137: -4.184603125 | C137: -33.476825
A138: 246.0581139 | B138: 3.941886097 | C138: 31.53508877
A139: 249.0605543 | B139: 0.9394456924 | C139: 7.515565539
A140: 247.2783516 | B140: 2.721648444 | C140: 21.77318755
A141: 241.5888445 | B141: 8.411155547 | C141: 67.28924438
A142: 246.3050958 | B142: 3.694904207 | C142: 29.55923366
A143: 248.8028848 | B143: 1.1971152 | C143: 9.576921599
A144: 251.9873731 | B144: -1.987373096 | C144: -15.89898477
A145: 256.4133417 | B145: -6.4133417 | C145: -51.3067336
A146: 257.6448859 | B146: -7.644885894 | C146: -61.15908715
A147: 252.6419358 | B147: -2.641935798 | C147: -21.13548638
A148: 255.3307837 | B148: -5.33078368 | C148: -42.64626944
A149: 262.4299337 | B149: -12.42993368 | C149: -99.43946948
A150: 253.0500172 | B150: -3.050017228 | C150: -24.40013782
A151: 249.4157952 | B151: 0.5842048252 | C151: 4.673638602
A152: 254.7945379 | B152: -4.794537853 | C152: -38.35630283
A153: 247.6236348 | B153: 2.376365163 | C153: 19.0109213
A154: 249.4510658 | B154: 0.5489341992 | C154: 4.391473594
A155: 252.6197942 | B155: -2.619794214 | C155: -20.95835371
A156: 256.7260799 | B156: -6.726079868 | C156: -53.80863894
A157: 249.8810942 | B157: 0.1189057619 | C157: 0.9512460951
A158: 252.2602169 | B158: -2.260216886 | C158: -18.08173509
A159: 255.9758897 | B159: -5.975889732 | C159: -47.80711785
A160: 249.9823413 | B160: 0.01765865421 | C160: 0.1412692337
A161: 246.3725593 | B161: 3.627440742 | C161: 29.01952593
A162: 238.6005088 | B162: 11.39949118 | C162: 91.19592944
A163: 252.619472 | B163: -2.619472049 | C163: -20.95577639
A164: 256.9086009 | B164: -6.908600905 | C164: -55.26880724
A165: 247.6528274 | B165: 2.347172564 | C165: 18.77738051
A166: 251.6747783 | B166: -1.674778305 | C166: -13.39822644
A167: 253.0364777 | B167: -3.036477711 | C167: -24.29182169
A168: 249.1224164 | B168: 0.8775835502 | C168: 7.020668402
A169: 247.2712427 | B169: 2.728757263 | C169: 21.83005811
A170: 249.2954735 | B170: 0.7045265146 | C170: 5.636212117
A171: 246.6337547 | B171: 3.366245271 | C171: 26.92996217
A172: 244.1134372 | B172: 5.886562824 | C172: 47.09250259
A173: 248.6446101 | B173: 1.355389927 | C173: 10.84311941
A174: 255.9236199 | B174: -5.923619932 | C174: -47.38895945
A175: 249.7672612 | B175: 0.2327387684 | C175: 1.861910147
A176: 246.9447874 | B176: 3.055212568 | C176: 24.44170054
A177: 249.7263602 | B177: 0.2736397797 | C177: 2.189118238
A178: 249.6110495 | B178: 0.3889505398 | C178: 3.111604318
A179: 243.0660454 | B179: 6.933954641 | C179: 55.47163713
A180: 253.537073 | B180: -3.537073031 | C180: -28.29658424
A181: 246.4672814 | B181: 3.532718574 | C181: 28.26174859
A182: 247.5990192 | B182: 2.400980776 | C182: 19.20784621
A183: 250.3029927 | B183: -0.3029926987 | C183: -2.42394159
A184: 248.1213872 | B184: 1.878612767 | C184: 15.02890214
A185: 243.6806131 | B185: 6.31938692 | C185: 50.55509536
A186: 242.2983267 | B186: 7.701673308 | C186: 61.61338647
A187: 252.8748951 | B187: -2.874895062 | C187: -22.9991605
A188: 248.3535887 | B188: 1.646411264 | C188: 13.17129012
A189: 252.6133467 | B189: -2.61334673 | C189: -20.90677384
A190: 249.4488344 | B190: 0.5511655722 | C190: 4.409324578
A191: 252.3140919 | B191: -2.314091894 | C191: -18.51273515
A192: 245.8248493 | B192: 4.175150733 | C192: 33.40120586
A193: 255.4525818 | B193: -5.452581807 | C193: -43.62065446
A194: 247.3221414 | B194: 2.677858638 | C194: 21.4228691
A195: 251.9640431 | B195: =250-A195 -> -1.964043113 | C195: =B195*8 -> -15.7123449
A196: 253.541121 | B196: -3.541120981 | C196: -28.32896785
A197: 244.0290011 | B197: 5.970998874 | C197: 47.76799099
A198: 258.5959866 | B198: -8.595986567 | C198: -68.76789254
A199: 257.5871048 | B199: -7.58710477 | C199: -60.69683816
A200: 249.0907146 | B200: 0.9092854014 | C200: 7.274283211
... 189 more rows

Sheet PopulationHistogram
A1: 249.8382697
A2: 249.3720444
A3: 253.1009323
A4: 248.9347942
A5: 252.6821876
A6: 253.1691762
A7: 245.7988482
A8: 249.9709845
A9: 249.7625504
A10: 249.2630162
A11: 250.0452435
A12: 250.7160147
A13: 243.4465969
A14: 249.822955
A15: 255.2881459
A16: 246.6700656
A17: 252.8947984
A18: 248.1966833
A19: 245.3947182
A20: 253.0915412
A21: 247.70172
A22: 247.2036592
A23: 249.4547237
A24: 252.2484614
A25: 253.3434608
A26: 246.2216324
A27: 251.9621894
A28: 247.4619931
A29: 253.7569021
A30: 244.3372
A31: 247.5763508
A32: 251.3324457
A33: 246.1933712
A34: 253.7631764
A35: 247.2012133
A36: 255.9887147
A37: 249.9857897
A38: 248.8019732
A39: 249.4437133
A40: 253.8051264
A41: 255.1447984
A42: 244.198529
A43: 250.2546415
A44: 245.1693435
A45: 250.6854763
A46: 250.0563065
A47: 246.2238372
A48: 249.6528127
A49: 249.0747235
A50: 248.1307335
A51: 240.8536753
A52: 245.5104218
A53: 260.1115173
A54: 247.1848552
A55: 247.6322211
A56: 251.8152896
A57: 250.6329023
A58: 246.8145638
A59: 250.1297532
A60: 251.9759834
A61: 248.4962056
A62: 252.164912
A63: 257.2241921
A64: 255.3733243
A65: 246.911188
A66: 250.3798305
A67: 253.3777016
A68: 249.8047108
A69: 260.2060881
A70: 248.3599725
A71: 245.8326953
A72: 252.4726355
A73: 254.5710754
A74: 247.5994367
A75: 250.7072003
A76: 243.548277
A77: 246.5440283
A78: 248.2831195
A79: 239.7557224
A80: 256.8380249
A81: 258.7970277
A82: 250.9281263
A83: 248.2349792
A84: 243.5847003
A85: 256.3480179
A86: 252.0440048
A87: 251.2774757
A88: 250.6640571
A89: 258.9008686
A90: 252.6810459
A91: 248.2766605
A92: 246.7394719
A93: 246.4411691
A94: 247.4329515
A95: 243.7961077
A96: 250.6851387
A97: 249.098876
A98: 253.1972725
A99: 248.1071507
A100: 251.4451469
A101: 255.9978507
A102: 249.8631935
A103: 247.7993445
A104: 255.8251109
A105: 241.9299905
A106: 245.51888
A107: 247.4508247
A108: 250.3664055
A109: 253.2153678
A110: 245.5252462
A111: 242.1556636
A112: 256.593586
A113: 248.3394158
A114: 253.1070703
A115: 249.5182255
A116: 257.9992387
A117: 255.7199885
A118: 245.3517067
A119: 244.5654012
A120: 252.436833
A121: 243.7559639
A122: 258.3174627
A123: 244.4401098
A124: 252.8726675
A125: 254.9148942
A126: 252.9269813
A127: 251.9008299
A128: 249.256586
A129: 251.4851576
A130: 243.4810825
A131: 241.8707347
A132: 251.481165
A133: 252.6122138
A134: 240.6966884
A135: 245.7647969
A136: 254.1846031
A137: 246.0581139
A138: 249.0605543
A139: 247.2783516
A140: 241.5888445
A141: 246.3050958
A142: 248.8028848
A143: 251.9873731
A144: 256.4133417
A145: 257.6448859
A146: 252.6419358
A147: 255.3307837
A148: 262.4299337
A149: 253.0500172
A150: 249.4157952
A151: 254.7945379
A152: 247.6236348
A153: 249.4510658
A154: 252.6197942
A155: 256.7260799
A156: 249.8810942
A157: 252.2602169
A158: 255.9758897
A159: 249.9823413
A160: 246.3725593
A161: 238.6005088
A162: 252.619472
A163: 256.9086009
A164: 247.6528274
A165: 251.6747783
A166: 253.0364777
A167: 249.1224164
A168: 247.2712427
A169: 249.2954735
A170: 246.6337547
A171: 244.1134372
A172: 248.6446101
A173: 255.9236199
A174: 249.7672612
A175: 246.9447874
A176: 249.7263602
A177: 249.6110495
A178: 243.0660454
A179: 253.537073
A180: 246.4672814
A181: 247.5990192
A182: 250.3029927
A183: 248.1213872
A184: 243.6806131
A185: 242.2983267
A186: 252.8748951
A187: 248.3535887
A188: 252.6133467
A189: 249.4488344
A190: 252.3140919
A191: 245.8248493
A192: 255.4525818
A193: 247.3221414
A194: 251.9640431
A195: 253.541121
A196: 244.0290011
A197: 258.5959866
A198: 257.5871048
A199: 249.0907146
A200: 253.9464913
... 213 more rows

Sheet UniformVsNormal
I1: Interval | K1: Number of samples (Normal Distribution) In the interval | M1: Number of samples Uniform Distribution) In the interval
H2: Population distribution
A3: Population | G3: Upper Bond | H3: Lower Bond | J3: Number of samples (Normal Distribution) having value less than upper bond | L3: Number of samples (Normal Distribution) having value less than upper bond
A4: Normal | B4: Random | E4: Uniform | G4: 265 | H4: =G5 -> 264.5 | I4: =CONCATENATE(TEXT(G4,"000.0"),"-",TEXT(H4,"000.0")) -> 265.0-264.5 | J4: =COUNTIF($A$5:$A$388,CONCATENATE("<",TEXT(G4,"000.0"))) -> 384 | K4: =J4-J5 -> 0 | L4: =COUNTIF($E$5:$E$388,CONCATENATE("<",TEXT(G4,"000.0"))) -> 384 | M4: =L4-L5 -> 0
A5: 249.8382697 | B5: 0.2560918977 | C5: =IF(B5>0.5,1,0) -> 0 | D5: 0.4297697336 | E5: =IF(C5=0,250+1.635*4.37*D5,250-1.635*4.37*D5) -> 253.0706833 | G5: =G4-0.5 -> 264.5 | H5: =G6 -> 264 | I5: =CONCATENATE(TEXT(G5,"000.0"),"-",TEXT(H5,"000.0")) -> 264.5-264.0 | J5: =COUNTIF($A$5:$A$388,CONCATENATE("<",TEXT(G5,"000.0"))) -> 384 | K5: =J5-J6 -> 0 | L5: =COUNTIF($E$5:$E$388,CONCATENATE("<",TEXT(G5,"000.0"))) -> 384 | M5: =L5-L6 -> 0
A6: 249.3720444 | B6: 0.3942813466 | C6: =IF(B6>0.5,1,0) -> 0 | D6: 0.6303761431 | E6: =IF(C6=0,250+1.635*4.37*D6,250-1.635*4.37*D6) -> 254.504006 | G6: =G5-0.5 -> 264 | H6: 263.5 | I6: 264.0-263.5 | J6: 384 | K6: 0 | L6: 384 | M6: 0
A7: 253.1009323 | B7: 0.4166437385 | C7: 0 | D7: 0.6862307553 | E7: 254.9030844 | G7: 263.5 | H7: 263 | I7: 263.5-263.0 | J7: 384 | K7: 0 | L7: 384 | M7: 0
A8: 248.9347942 | B8: 0.2768103279 | C8: 0 | D8: 0.3783370518 | E8: 252.7031993 | G8: 263 | H8: 262.5 | I8: 263.0-262.5 | J8: 384 | K8: 0 | L8: 384 | M8: 0
A9: 252.6821876 | B9: 0.6446363314 | C9: 1 | D9: 0.5029674435 | E9: 246.4063228 | G9: 262.5 | H9: 262 | I9: 262.5-262.0 | J9: 384 | K9: 1 | L9: 384 | M9: 0
A10: 253.1691762 | B10: 0.1012401803 | C10: 0 | D10: 0.3030634978 | E10: 252.1653735 | G10: 262 | H10: 261.5 | I10: 262.0-261.5 | J10: 383 | K10: 0 | L10: 384 | M10: 0
A11: 245.7988482 | B11: 0.2526705538 | C11: 0 | D11: 0.6696672533 | E11: 254.784739 | G11: 261.5 | H11: 261 | I11: 261.5-261.0 | J11: 383 | K11: 1 | L11: 384 | M11: 0
A12: 249.9709845 | B12: 0.8527756422 | C12: 1 | D12: 0.95404593 | E12: 243.1833895 | G12: 261 | H12: 260.5 | I12: 261.0-260.5 | J12: 382 | K12: 0 | L12: 384 | M12: 0
A13: 249.7625504 | B13: 0.05669403262 | C13: 0 | D13: 0.7264026518 | E13: 255.1901106 | G13: 260.5 | H13: 260 | I13: 260.5-260.0 | J13: 382 | K13: 3 | L13: 384 | M13: 0
A14: 249.2630162 | B14: 0.4166839091 | C14: 0 | D14: 0.1402060747 | E14: 251.0017654 | G14: 260 | H14: 259.5 | I14: 260.0-259.5 | J14: 379 | K14: 0 | L14: 384 | M14: 0
A15: 250.0452435 | B15: 0.3119807604 | C15: 0 | D15: 0.2003378473 | E15: 251.4314039 | G15: 259.5 | H15: 259 | I15: 259.5-259.0 | J15: 379 | K15: 1 | L15: 384 | M15: 0
A16: 250.7160147 | B16: 0.3360254662 | C16: 0 | D16: 0.6598506947 | E16: 254.7146002 | G16: 259 | H16: 258.5 | I16: 259.0-258.5 | J16: 378 | K16: 4 | L16: 384 | M16: 0
A17: 243.4465969 | B17: 0.708457817 | C17: 1 | D17: 0.8047332938 | E17: 244.2502209 | G17: 258.5 | H17: 258 | I17: 258.5-258.0 | J17: 374 | K17: 2 | L17: 384 | M17: 0
A18: 249.822955 | B18: 0.6749744152 | C18: 1 | D18: 0.4296617002 | E18: 246.9300886 | G18: 258 | H18: 257.5 | I18: 258.0-257.5 | J18: 372 | K18: 5 | L18: 384 | M18: 0
A19: 255.2881459 | B19: 0.823369837 | C19: 1 | D19: 0.8915212671 | E19: 243.6301251 | G19: 257.5 | H19: 257 | I19: 257.5-257.0 | J19: 367 | K19: 6 | L19: 384 | M19: 3
A20: 246.6700656 | B20: 0.3465051275 | C20: 0 | D20: 0.3050840866 | E20: 252.1798105 | G20: 257 | H20: 256.5 | I20: 257.0-256.5 | J20: 361 | K20: 7 | L20: 381 | M20: 12
A21: 252.8947984 | B21: 0.2158954365 | C21: 0 | D21: 0.5624980815 | E21: 254.0190207 | G21: 256.5 | H21: 256 | I21: 256.5-256.0 | J21: 354 | K21: 5 | L21: 369 | M21: 21
A22: 248.1966833 | B22: 0.5109582284 | C22: 1 | D22: 0.09879876962 | E22: 249.2940877 | G22: 256 | H22: 255.5 | I22: 256.0-255.5 | J22: 349 | K22: 8 | L22: 348 | M22: 12
A23: 245.3947182 | B23: 0.06917514917 | C23: 0 | D23: 0.5674775576 | E23: 254.0545988 | G23: 255.5 | H23: 255 | I23: 255.5-255.0 | J23: 341 | K23: 9 | L23: 336 | M23: 15
A24: 253.0915412 | B24: 0.6286571737 | C24: 1 | D24: 0.7073771672 | E24: 244.9458255 | G24: 255 | H24: 254.5 | I24: 255.0-254.5 | J24: 332 | K24: 6 | L24: 321 | M24: 18
A25: 247.70172 | B25: 0.850077947 | C25: 1 | D25: 0.4716618902 | E25: 246.6299994 | G25: 254.5 | H25: 254 | I25: 254.5-254.0 | J25: 326 | K25: 9 | L25: 303 | M25: 18
A26: 247.2036592 | B26: 0.4486728817 | C26: 0 | D26: 0.5635945947 | E26: 254.0268552 | G26: 254 | H26: 253.5 | I26: 254.0-253.5 | J26: 317 | K26: 15 | L26: 285 | M26: 13
A27: 249.4547237 | B27: 0.4775676279 | C27: 0 | D27: 0.5361322601 | E27: 253.8306382 | G27: 253.5 | H27: 253 | I27: 253.5-253.0 | J27: 302 | K27: 18 | L27: 272 | M27: 11
A28: 252.2484614 | B28: 0.1967283167 | C28: 0 | D28: 0.4909474666 | E28: 253.5077951 | G28: 253 | H28: 252.5 | I28: 253.0-252.5 | J28: 284 | K28: 16 | L28: 261 | M28: 9
A29: 253.3434608 | B29: 0.8674791076 | C29: 1 | D29: 0.8975868241 | E29: 243.586787 | G29: 252.5 | H29: 252 | I29: 252.5-252.0 | J29: 268 | K29: 14 | L29: 252 | M29: 8
A30: 246.2216324 | B30: 0.9605661733 | C30: 1 | D30: 0.1543948731 | E30: 248.8968564 | G30: 252 | H30: 251.5 | I30: 252.0-251.5 | J30: 254 | K30: 16 | L30: 244 | M30: 10
A31: 251.9621894 | B31: 0.9989429971 | C31: 1 | D31: 0.486039719 | E31: 246.5272705 | G31: 251.5 | H31: 251 | I31: 251.5-251.0 | J31: 238 | K31: 12 | L31: 234 | M31: 11
A32: 247.4619931 | B32: 0.6413422586 | C32: 1 | D32: 0.8770651876 | E32: 243.7334131 | G32: 251 | H32: 250.5 | I32: 251.0-250.5 | J32: 226 | K32: 12 | L32: 223 | M32: 16
A33: 253.7569021 | B33: 0.01892262798 | C33: 0 | D33: 0.8363851117 | E33: 255.9759298 | G33: 250.5 | H33: 250 | I33: 250.5-250.0 | J33: 214 | K33: 16 | L33: 207 | M33: 13
A34: 244.3372 | B34: 0.7855546401 | C34: 1 | D34: 0.8545726499 | E34: 243.8941211 | G34: 250 | H34: 249.5 | I34: 250.0-249.5 | J34: 198 | K34: 21 | L34: 194 | M34: 16
A35: 247.5763508 | B35: 0.1956437617 | C35: 0 | D35: 0.9179652939 | E35: 256.5588161 | G35: 249.5 | H35: 249 | I35: 249.5-249.0 | J35: 177 | K35: 27 | L35: 178 | M35: 9
A36: 251.3324457 | B36: 0.03876634773 | C36: 0 | D36: 0.4825535275 | E36: 253.4478208 | G36: 249 | H36: 248.5 | I36: 249.0-248.5 | J36: 150 | K36: 10 | L36: 169 | M36: 14
A37: 246.1933712 | B37: 0.2647328997 | C37: 0 | D37: 0.7323601402 | E37: 255.2326766 | G37: 248.5 | H37: 248 | I37: 248.5-248.0 | J37: 140 | K37: 20 | L37: 155 | M37: 19
A38: 253.7631764 | B38: 0.05352203501 | C38: 0 | D38: 0.8308948475 | E38: 255.9367021 | G38: 248 | H38: 247.5 | I38: 248.0-247.5 | J38: 120 | K38: 15 | L38: 136 | M38: 13
A39: 247.2012133 | B39: 0.7675416636 | C39: 1 | D39: 0.6679441024 | E39: 245.2275728 | G39: 247.5 | H39: 247 | I39: 247.5-247.0 | J39: 105 | K39: 11 | L39: 123 | M39: 8
A40: 255.9887147 | B40: 0.4711899214 | C40: 0 | D40: 0.6821680934 | E40: 254.8740569 | G40: 247 | H40: 246.5 | I40: 247.0-246.5 | J40: 94 | K40: 14 | L40: 115 | M40: 11
A41: 249.9857897 | B41: 0.1888144481 | C41: 0 | D41: 0.8430897424 | E41: 256.0238341 | G41: 246.5 | H41: 246 | I41: 246.5-246.0 | J41: 80 | K41: 13 | L41: 104 | M41: 9
A42: 248.8019732 | B42: 0.5025343569 | C42: 1 | D42: 0.212271694 | E42: 248.4833294 | G42: 246 | H42: 245.5 | I42: 246.0-245.5 | J42: 67 | K42: 14 | L42: 95 | M42: 4
A43: 249.4437133 | B43: 0.2051885411 | C43: 0 | D43: 0.7660666556 | E43: 255.473508 | G43: 245.5 | H43: 245 | I43: 245.5-245.0 | J43: 53 | K43: 5 | L43: 91 | M43: 17
A44: 253.8051264 | B44: 0.8207198305 | C44: 1 | D44: 0.9225690882 | E44: 243.40829 | G44: 245 | H44: 244.5 | I44: 245.0-244.5 | J44: 48 | K44: 3 | L44: 74 | M44: 15
A45: 255.1447984 | B45: 0.6084842737 | C45: 1 | D45: 0.3057179433 | E45: 247.8156606 | G45: 244.5 | H45: 244 | I45: 244.5-244.0 | J45: 45 | K45: 9 | L45: 59 | M45: 14
A46: 244.198529 | B46: 0.8024867096 | C46: 1 | D46: 0.5234701906 | E46: 246.2598317 | G46: 244 | H46: 243.5 | I46: 244.0-243.5 | J46: 36 | K46: 10 | L46: 45 | M46: 17
A47: 250.2546415 | B47: 0.3890440382 | C47: 0 | D47: 0.07719975862 | E47: 250.5515884 | G47: 243.5 | H47: 243 | I47: 243.5-243.0 | J47: 26 | K47: 3 | L47: 28 | M47: 18
A48: 245.1693435 | B48: 0.09908998107 | C48: 0 | D48: 0.9116179557 | E48: 256.5134647 | G48: 243 | H48: 242.5 | I48: 243.0-242.5 | J48: 23 | K48: 3 | L48: 10 | M48: 10
A49: 250.6854763 | B49: 0.2544290104 | C49: 0 | D49: 0.01554682075 | E49: 250.1110813 | G49: 242.5 | H49: 242 | I49: 242.5-242.0 | J49: 20 | K49: 8 | L49: 0 | M49: 0
A50: 250.0563065 | B50: 0.7094193185 | C50: 1 | D50: 0.827729656 | E50: 244.085913 | G50: 242 | H50: 241.5 | I50: 242.0-241.5 | J50: 12 | K50: 4 | L50: 0 | M50: 0
A51: 246.2238372 | B51: 0.2187958353 | C51: 0 | D51: 0.6648769089 | E51: 254.7505123 | G51: 241.5 | H51: 241 | I51: 241.5-241.0 | J51: 8 | K51: 0 | L51: 0 | M51: 0
A52: 249.6528127 | B52: 0.4876528631 | C52: 0 | D52: 0.06262288469 | E52: 250.4474374 | G52: 241 | H52: 240.5 | I52: 241.0-240.5 | J52: 8 | K52: 3 | L52: 0 | M52: 0
A53: 249.0747235 | B53: 0.5954151455 | C53: 1 | D53: 0.3274290671 | E53: 247.6605357 | G53: 240.5 | H53: 240 | I53: 240.5-240.0 | J53: 5 | K53: 1 | L53: 0 | M53: 0
A54: 248.1307335 | B54: 0.8611024291 | C54: 1 | D54: 0.4174175762 | E54: 247.0175723 | G54: 240 | H54: 239.5 | I54: 240.0-239.5 | J54: 4 | K54: 2 | L54: 0 | M54: 0
A55: 240.8536753 | B55: 0.5372036497 | C55: 1 | D55: 0.7994213709 | E55: 244.2881743 | G55: 239.5 | H55: 239 | I55: 239.5-239.0 | J55: 2 | K55: 0 | L55: 0 | M55: 0
A56: 245.5104218 | B56: 0.9580687446 | C56: 1 | D56: 0.02519741896 | E56: 249.8199657 | G56: 239 | H56: 238.5 | I56: 239.0-238.5 | J56: 2 | K56: 2 | L56: 0 | M56: 0
A57: 260.1115173 | B57: 0.2298556333 | C57: 0 | D57: 0.6521013614 | E57: 254.6592316 | G57: 238.5 | H57: 238 | I57: 238.5-238.0 | J57: 0 | K57: 0 | L57: 0 | M57: 0
A58: 247.1848552 | B58: 0.2470010812 | C58: 0 | D58: 0.4311070622 | E58: 253.0802384 | G58: 238 | H58: 237.5 | I58: 238.0-237.5 | J58: 0 | K58: 0 | L58: 0 | M58: 0
A59: 247.6322211 | B59: 0.5349562595 | C59: 1 | D59: 0.8245851177 | E59: 244.1083806 | G59: 237.5 | H59: 237 | I59: 237.5-237.0 | J59: 0 | K59: 0 | L59: 0 | M59: 0
A60: 251.8152896 | B60: 0.2942501874 | C60: 0 | D60: 0.7968029761 | E60: 255.6931174 | G60: 237 | H60: 236.5 | I60: 237.0-236.5 | J60: 0 | K60: 0 | L60: 0 | M60: 0
A61: 250.6329023 | B61: 0.6629132177 | C61: 1 | D61: 0.803368224 | E61: 244.2599742 | G61: 236.5 | H61: 236 | I61: 236.5-236.0 | J61: 0 | K61: 0 | L61: 0 | M61: 0
A62: 246.8145638 | B62: 0.126125177 | C62: 0 | D62: 0.6088398267 | E62: 254.3501301 | G62: 236 | H62: 235.5 | I62: 236.0-235.5 | J62: 0 | K62: 0 | L62: 0 | M62: 0
A63: 250.1297532 | B63: 0.482379012 | C63: 0 | D63: 0.63217557 | E63: 254.5168628 | G63: 235.5 | H63: 235 | I63: 235.5-235.0 | J63: 0 | K63: 0 | L63: 0 | M63: 0
A64: 251.9759834 | B64: 0.9630895893 | C64: 1 | D64: 0.2149492041 | E64: 248.4641987
A65: 248.4962056 | B65: 0.5098101943 | C65: 1 | D65: 0.7297625307 | E65: 244.7858832
A66: 252.164912 | B66: 0.3067732305 | C66: 0 | D66: 0.8967389329 | E66: 256.4071548
A67: 257.2241921 | B67: 0.9957763817 | C67: 1 | D67: 0.9802751664 | E67: 242.995983
A68: 255.3733243 | B68: 0.7224140207 | C68: 1 | D68: 0.8279136549 | E68: 244.0845983
A69: 246.911188 | B69: 0.3848487426 | C69: 0 | D69: 0.6937589009 | E69: 254.9568727
A70: 250.3798305 | B70: 0.08771759381 | C70: =IF(B70>0.5,1,0) -> 0 | D70: 0.8621929034 | E70: =IF(C70=0,250+1.635*4.37*D70,250-1.635*4.37*D70) -> 256.1603252
A71: 253.3777016 | B71: 0.599770194 | C71: 1 | D71: 0.6354135477 | E71: 245.460002
A72: 249.8047108 | B72: 0.4447399938 | C72: 0 | D72: 0.01443454578 | E72: 250.1031341
A73: 260.2060881 | B73: 0.8122429416 | C73: 1 | D73: 0.3765308668 | E73: 247.3097058
A74: 248.3599725 | B74: 0.341679834 | C74: 0 | D74: 0.09577085103 | E74: 250.6842779
A75: 245.8326953 | B75: 0.446945264 | C75: 0 | D75: 0.5658467795 | E75: 254.0429469
A76: 252.4726355 | B76: 0.874980971 | C76: 1 | D76: 0.8379790396 | E76: 244.0126817
A77: 254.5710754 | B77: 0.4714635813 | C77: 0 | D77: 0.155243573 | E77: 251.1092076
A78: 247.5994367 | B78: 0.1430252042 | C78: 0 | D78: 0.1661173141 | E78: 251.1868999
A79: 250.7072003 | B79: 0.8536397446 | C79: 1 | D79: 0.3372234225 | E79: 247.5905555
A80: 243.548277 | B80: 0.2316102332 | C80: 0 | D80: 0.7475754052 | E80: 255.3413889
A81: 246.5440283 | B81: 0.07805865867 | C81: 0 | D81: 0.258369322 | E81: 251.8460359
A82: 248.2831195 | B82: 0.2535719265 | C82: 0 | D82: 0.6838982114 | E82: 254.8864185
A83: 239.7557224 | B83: 0.1982964917 | C83: 0 | D83: 0.4484162218 | E83: 253.2039115
A84: 256.8380249 | B84: 0.5153646391 | C84: 1 | D84: 0.9721202849 | E84: 243.0542492
A85: 258.7970277 | B85: 0.7237447878 | C85: 1 | D85: 0.3805557319 | E85: 247.2809483
A86: 250.9281263 | B86: 0.04113564155 | C86: 0 | D86: 0.098203312 | E86: 250.7016578
A87: 248.2349792 | B87: 0.5224408157 | C87: 1 | D87: 0.6482715857 | E87: 245.3681319
A88: 243.5847003 | B88: 0.5961428452 | C88: 1 | D88: 0.2085298238 | E88: 248.5100648
A89: 256.3480179 | B89: 0.7476947778 | C89: 1 | D89: 0.32561891 | E89: 247.6734692
A90: 252.0440048 | B90: 0.210256496 | C90: 0 | D90: 0.3611990055 | E90: 252.5807488
A91: 251.2774757 | B91: 0.3574797819 | C91: 0 | D91: 0.3297827237 | E91: 252.3562811
A92: 250.6640571 | B92: 0.6804352325 | C92: 1 | D92: 0.9876512371 | E92: 242.9432813
A93: 258.9008686 | B93: 0.2268170623 | C93: 0 | D93: 0.03204589393 | E93: 250.2289663
A94: 252.6810459 | B94: 0.07803473726 | C94: 0 | D94: 0.6244032115 | E94: 254.4613297
A95: 248.2766605 | B95: 0.8857906168 | C95: 1 | D95: 0.2809941931 | E95: 247.9923105
A96: 246.7394719 | B96: 0.2062081978 | C96: 0 | D96: 0.1021649094 | E96: 250.7299632
A97: 246.4411691 | B97: 0.8372350946 | C97: 1 | D97: 0.905318935 | E97: 243.5315415
A98: 247.4329515 | B98: 0.768621308 | C98: 1 | D98: 0.8339670003 | E98: 244.0413475
A99: 243.7961077 | B99: 0.02098830047 | C99: 0 | D99: 0.6031106571 | E99: 254.3091955
A100: 250.6851387 | B100: 0.3522416036 | C100: 0 | D100: 0.6322489251 | E100: 254.517387
A101: 249.098876 | B101: 0.07137739847 | C101: 0 | D101: 0.1094902449 | E101: 250.7823023
A102: 253.1972725 | B102: 0.6194249116 | C102: 1 | D102: 0.9573696495 | E102: 243.1596417
A103: 248.1071507 | B103: 0.02318929841 | C103: 0 | D103: 0.9183331799 | E103: 256.5614447
A104: 251.4451469 | B104: 0.4869704047 | C104: 0 | D104: 0.9285945852 | E104: 256.6347619
A105: 255.9978507 | B105: 0.04141439415 | C105: 0 | D105: 0.5144540196 | E105: 253.6757482
A106: 249.8631935 | B106: 0.564979994 | C106: 1 | D106: 0.9419167383 | E106: 243.270052
A107: 247.7993445 | B107: 0.2498415988 | C107: 0 | D107: 0.5319719308 | E107: 253.8009128
A108: 255.8251109 | B108: 0.6358916086 | C108: 1 | D108: 0.3465877784 | E108: 247.5236477
A109: 241.9299905 | B109: 0.3092309173 | C109: 0 | D109: 0.05675030366 | E109: 250.4054781
A110: 245.51888 | B110: 0.6083656685 | C110: 1 | D110: 0.2409614525 | E110: 248.2783425
A111: 247.4508247 | B111: 0.4186806716 | C111: 0 | D111: 0.9295669987 | E111: 256.6417097
A112: 250.3664055 | B112: 0.09615151905 | C112: 0 | D112: 0.03800444884 | E112: 250.2715399
A113: 253.2153678 | B113: 0.3048017788 | C113: 0 | D113: 0.01682595558 | E113: 250.1202206
A114: 245.5252462 | B114: 0.2765412634 | C114: 0 | D114: 0.09825154013 | E114: 250.7020023
A115: 242.1556636 | B115: 0.5641144183 | C115: 1 | D115: 0.239763941 | E115: 248.2868986
A116: 256.593586 | B116: 0.2718912326 | C116: 0 | D116: 0.6740316021 | E116: 254.8159221
A117: 248.3394158 | B117: 0.7820569753 | C117: 1 | D117: 0.2795910051 | E117: 248.0023362
A118: 253.1070703 | B118: 0.4314211957 | C118: 0 | D118: 0.8344114577 | E118: 255.9618281
A119: 249.5182255 | B119: 0.8002001184 | C119: 1 | D119: 0.2372212397 | E119: 248.3050661
A120: 257.9992387 | B120: 0.3624329963 | C120: 0 | D120: 0.6402250283 | E120: 254.5743758
A121: 255.7199885 | B121: 0.03944770389 | C121: 0 | D121: 0.7570399393 | E121: 255.4090125
A122: 245.3517067 | B122: 0.2467716786 | C122: 0 | D122: 0.7000369461 | E122: 255.001729
A123: 244.5654012 | B123: 0.1232461137 | C123: 0 | D123: 0.1221038053 | E123: 250.8724256
A124: 252.436833 | B124: 0.9013327794 | C124: 1 | D124: 0.1866678233 | E124: 248.6662677
A125: 243.7559639 | B125: 0.3357461653 | C125: 0 | D125: 0.8905109012 | E125: 256.3626559
A126: 258.3174627 | B126: 0.1779922343 | C126: 0 | D126: 0.432922574 | E126: 253.0932101
A127: 244.4401098 | B127: 0.3547163783 | C127: 0 | D127: 0.6906631515 | E127: 254.9347537
A128: 252.8726675 | B128: 0.5103660012 | C128: 1 | D128: 0.1205550326 | E128: 249.1386403
A129: 254.9148942 | B129: 0.7454197341 | C129: 1 | D129: 0.9382633063 | E129: 243.2961556
A130: 252.9269813 | B130: 0.3485365729 | C130: 0 | D130: 0.9000620921 | E130: 256.4308986
A131: 251.9008299 | B131: 0.2007328034 | C131: 0 | D131: 0.3992468288 | E131: 252.8525986
A132: 249.256586 | B132: 0.4992692512 | C132: 0 | D132: 0.8423882265 | E132: 256.0188218
A133: 251.4851576 | B133: 0.4825782982 | C133: 0 | D133: 0.529032056 | E133: 253.7799076
A134: 243.4810825 | B134: 0.813059748 | C134: =IF(B134>0.5,1,0) -> 1 | D134: 0.6904154159 | E134: =IF(C134=0,250+1.635*4.37*D134,250-1.635*4.37*D134) -> 245.0670164
A135: 241.8707347 | B135: 0.5909882157 | C135: 1 | D135: 0.9845054446 | E135: 242.9657578
A136: 251.481165 | B136: 0.04468365157 | C136: 0 | D136: 0.4984921753 | E136: 253.5617017
A137: 252.6122138 | B137: 0.3087167028 | C137: 0 | D137: 0.8728621738 | E137: 256.2365566
A138: 240.6966884 | B138: 0.9636556101 | C138: 1 | D138: 0.8051796537 | E138: 244.2470316
A139: 245.7647969 | B139: 0.2668524587 | C139: 0 | D139: 0.9968128507 | E139: 257.122178
A140: 254.1846031 | B140: 0.2752334762 | C140: 0 | D140: 0.4544174775 | E140: 253.2467902
A141: 246.0581139 | B141: 0.5731609331 | C141: 1 | D141: 0.04777559776 | E141: 249.6586457
A142: 249.0605543 | B142: 0.5764621447 | C142: 1 | D142: 0.282227756 | E142: 247.9834968
A143: 247.2783516 | B143: 0.5763862463 | C143: 1 | D143: 0.7123030346 | E143: 244.9106304
A144: 241.5888445 | B144: 0.4945840277 | C144: 0 | D144: 0.1229690873 | E144: 250.878608
A145: 246.3050958 | B145: 0.5393850117 | C145: 1 | D145: 0.3951935539 | E145: 247.1763618
A146: 248.8028848 | B146: 0.4416398318 | C146: 0 | D146: 0.8206247479 | E146: 255.8633228
A147: 251.9873731 | B147: 0.7684755681 | C147: 1 | D147: 0.3865280156 | E147: 247.2382767
A148: 256.4133417 | B148: 0.6035680919 | C148: 1 | D148: 0.02294672659 | E148: 249.8360468
A149: 257.6448859 | B149: 0.6610560181 | C149: 1 | D149: 0.8487165953 | E149: 243.9359624
A150: 252.6419358 | B150: 0.09659889377 | C150: 0 | D150: 0.5403703826 | E150: 253.8609194
A151: 255.3307837 | B151: 0.06429872162 | C151: 0 | D151: 0.4055274312 | E151: 252.8974732
A152: 262.4299337 | B152: 0.9254282813 | C152: 1 | D152: 0.5535782657 | E152: 246.044711
A153: 253.0500172 | B153: 0.859999233 | C153: 1 | D153: 0.66795146 | E153: 245.2275202
A154: 249.4157952 | B154: 0.9666265651 | C154: 1 | D154: 0.3448251094 | E154: 247.5362418
A155: 254.7945379 | B155: 0.5017441877 | C155: 1 | D155: 0.8716835031 | E155: 243.771865
A156: 247.6236348 | B156: 0.7150935466 | C156: 1 | D156: 0.1401855399 | E156: 248.9983813
A157: 249.4510658 | B157: 0.5910138246 | C157: 1 | D157: 0.6431003188 | E157: 245.4050804
A158: 252.6197942 | B158: 0.6697540568 | C158: 1 | D158: 0.1939025551 | E158: 248.6145759
A159: 256.7260799 | B159: 0.9039670382 | C159: 1 | D159: 0.7697472015 | E159: 244.5001947
A160: 249.8810942 | B160: 0.9661676698 | C160: 1 | D160: 0.5095368008 | E160: 246.359385
A161: 252.2602169 | B161: 0.6260713037 | C161: 1 | D161: 0.1609292801 | E161: 248.8501683
A162: 255.9758897 | B162: 0.47790755 | C162: 0 | D162: 0.1889045753 | E162: 251.3497137
A163: 249.9823413 | B163: 0.6984362691 | C163: 1 | D163: 0.3603955675 | E163: 247.4249917
A164: 246.3725593 | B164: 0.4115097915 | C164: 0 | D164: 0.03042623557 | E164: 250.2173939
A165: 238.6005088 | B165: 0.2343283622 | C165: 0 | D165: 0.2759132008 | E165: 251.971386
A166: 252.619472 | B166: 0.7255858751 | C166: 1 | D166: 0.6952271737 | E166: 245.0326366
A167: 256.9086009 | B167: 0.8064130359 | C167: 1 | D167: 0.9754691101 | E167: 243.030322
A168: 247.6528274 | B168: 0.9408665893 | C168: 1 | D168: 0.7440615017 | E168: 244.6837178
A169: 251.6747783 | B169: 0.7057417302 | C169: 1 | D169: 0.001792618209 | E169: 249.9871918
A170: 253.0364777 | B170: 0.6000992121 | C170: 1 | D170: 0.6435511681 | E170: 245.4018591
A171: 249.1224164 | B171: 0.1893284307 | C171: 0 | D171: 0.0818130786 | E171: 250.5845504
A172: 247.2712427 | B172: 0.382687558 | C172: 0 | D172: 0.7252073134 | E172: 255.18157
A173: 249.2954735 | B173: 0.8254896656 | C173: 1 | D173: 0.1260891017 | E173: 249.0990997
A174: 246.6337547 | B174: 0.8184894126 | C174: 1 | D174: 0.924195455 | E174: 243.3966697
A175: 244.1134372 | B175: 0.9073389209 | C175: 1 | D175: 0.9479163438 | E175: 243.2271851
A176: 248.6446101 | B176: 0.1985415789 | C176: 0 | D176: 0.3739572557 | E176: 252.6719059
A177: 255.9236199 | B177: 0.6102237281 | C177: 1 | D177: 0.2757803044 | E177: 248.0295635
A178: 249.7672612 | B178: 0.08544630041 | C178: 0 | D178: 0.7429510343 | E178: 255.308348
A179: 246.9447874 | B179: 0.01534719472 | C179: 0 | D179: 0.3659527912 | E179: 252.6147144
A180: 249.7263602 | B180: 0.3307917413 | C180: 0 | D180: 0.409143995 | E180: 252.9233134
A181: 249.6110495 | B181: 0.9984133843 | C181: 1 | D181: 0.2570069932 | E181: 248.1636979
A182: 243.0660454 | B182: 0.1021390729 | C182: 0 | D182: 0.447425291 | E182: 253.1968313
A183: 253.537073 | B183: 0.8609885491 | C183: 1 | D183: 0.611299887 | E183: 245.6322929
A184: 246.4672814 | B184: 0.839315886 | C184: 1 | D184: 0.04843058053 | E184: 249.6539659
A185: 247.5990192 | B185: 0.7366981734 | C185: 1 | D185: 0.9675591813 | E185: 243.086838
A186: 250.3029927 | B186: 0.5279447195 | C186: 1 | D186: 0.8451915785 | E186: 243.9611484
A187: 248.1213872 | B187: 0.8443790793 | C187: 1 | D187: 0.9548298982 | E187: 243.1777881
A188: 243.6806131 | B188: 0.9798989608 | C188: 1 | D188: 0.2814123209 | E188: 247.989323
A189: 242.2983267 | B189: 0.8744557859 | C189: 1 | D189: 0.6868765653 | E189: 245.0923013
A190: 252.8748951 | B190: 0.1728243855 | C190: 0 | D190: 0.8300663796 | E190: 255.9307828
A191: 248.3535887 | B191: 0.7385913131 | C191: 1 | D191: 0.01232389777 | E191: 249.9119464
A192: 252.6133467 | B192: 0.08525808503 | C192: 0 | D192: 0.5192339886 | E192: 253.7099009
A193: 249.4488344 | B193: 0.894760208 | C193: 1 | D193: 0.4409195504 | E193: 246.8496519
A194: 252.3140919 | B194: 0.6416798135 | C194: 1 | D194: 0.08637981799 | E194: 249.3828205
A195: 245.8248493 | B195: 0.1577756615 | C195: 0 | D195: 0.05639016752 | E195: 250.4029049
A196: 255.4525818 | B196: 0.01467098392 | C196: 0 | D196: 0.2657328593 | E196: 251.898648
A197: 247.3221414 | B197: 0.3561438558 | C197: 0 | D197: 0.5736578973 | E197: 254.098757
A198: 251.9640431 | B198: 0.2889836764 | C198: =IF(B198>0.5,1,0) -> 0 | D198: 0.2755112533 | E198: =IF(C198=0,250+1.635*4.37*D198,250-1.635*4.37*D198) -> 251.9685141
A199: 253.541121 | B199: 0.4664478865 | C199: 0 | D199: 0.2083031953 | E199: 251.4883159
A200: 244.0290011 | B200: 0.3340789079 | C200: 0 | D200: 0.7758197779 | E200: 255.5431935
... 190 more rows
